[Event "*** Titled Tuesday Blitz"]
[Site "Chess.com"]
[Date "2021.02.09"]
[Round "3"]
[White "champ2005"]
[Black "LEGENYA1998"]
[Result "1-0"]
[WhiteElo "3016"]
[BlackElo "2244"]
[TimeControl "180+1"]
[EndTime "10:29:28 PST"]
[Termination "champ2005 won by resignation"]

1. d4 {[%clk 0:03:00.9]} 1... Nf6 {[%clk 0:02:44.2]} 2. Bf4 {[%clk 0:03:01]}
2... e6 {[%clk 0:02:37.7]} 3. e3 {[%clk 0:03:01.4]} 3... b6 {[%clk 0:02:37.1]}
4. Nf3 {[%clk 0:02:59.8]} 4... Bb7 {[%clk 0:02:37.1]} 5. Bd3 {[%clk 0:02:59.6]}
5... Be7 {[%clk 0:02:32.4]} 6. O-O {[%clk 0:02:59.8]} 6... Ne4 {[%clk
0:02:31.3]} 7. c4 {[%clk 0:02:58]} 7... O-O {[%clk 0:02:28.4]} 8. Qc2 {[%clk
0:02:58]} 8... f5 {[%clk 0:02:23.7]} 9. Nc3 {[%clk 0:02:54.9]} 9... Nxc3 {[%clk
0:02:22.7]} 10. bxc3 {[%clk 0:02:54.5]} 10... Bxf3 {[%clk 0:02:22.9]} 11. gxf3
{[%clk 0:02:55.4]} 11... Bd6 {[%clk 0:02:21.9]} 12. Bg3 {[%clk 0:02:54.6]} 12...
Nc6 {[%clk 0:02:20.2]} 13. f4 {[%clk 0:02:53.1]} 13... a5 {[%clk 0:02:14.2]} 14.
a4 {[%clk 0:02:52.5]} 14... Be7 {[%clk 0:02:04.5]} 15. Kh1 {[%clk 0:02:52.8]}
15... Bf6 {[%clk 0:01:58.2]} 16. e4 {[%clk 0:02:50.2]} 16... g6 {[%clk
0:01:53.6]} 17. e5 {[%clk 0:02:48.8]} 17... Bh4 {[%clk 0:01:48.8]} 18. Rad1
{[%clk 0:02:45.4]} 18... d5 {[%clk 0:01:45]} 19. cxd5 {[%clk 0:02:44.7]} 19...
Qxd5+ {[%clk 0:01:43.4]} 20. Kg1 {[%clk 0:02:45.3]} 20... Bxg3 {[%clk
0:01:33.6]} 21. hxg3 {[%clk 0:02:46.2]} 21... Ne7 {[%clk 0:01:27]} 22. c4 {[%clk
0:02:41.4]} 22... Qc6 {[%clk 0:01:22.3]} 23. Rd2 {[%clk 0:02:41.6]} 23... Rad8
{[%clk 0:01:21.7]} 24. Be2 {[%clk 0:02:42]} 24... Rd7 {[%clk 0:01:19.4]} 25.
Rfd1 {[%clk 0:02:42.2]} 25... Rfd8 {[%clk 0:01:17.9]} 26. Bf1 {[%clk 0:02:40.3]}
26... Qb7 {[%clk 0:01:07.1]} 27. Bg2 {[%clk 0:02:40.2]} 27... c6 {[%clk
0:01:06.2]} 28. Qb3 {[%clk 0:02:33]} 28... Kg7 {[%clk 0:01:02]} 29. Bf3 {[%clk
0:02:28.5]} 29... Qc7 {[%clk 0:00:49.2]} 30. Kg2 {[%clk 0:02:25.6]} 30... h6
{[%clk 0:00:46.9]} 31. Qe3 {[%clk 0:02:21.5]} 31... Qa7 {[%clk 0:00:34.8]} 32.
Rb2 {[%clk 0:02:05.3]} 32... c5 {[%clk 0:00:26.9]} 33. Rdb1 {[%clk 0:01:57.8]}
33... cxd4 {[%clk 0:00:22.2]} 34. Qd3 {[%clk 0:01:58.2]} 34... Rb8 {[%clk
0:00:19.3]} 35. c5 {[%clk 0:01:58.3]} 35... Nd5 {[%clk 0:00:16.3]} 36. Bxd5
{[%clk 0:01:58.6]} 36... Rxd5 {[%clk 0:00:15.4]} 37. Rxb6 {[%clk 0:01:54.3]}
37... Rxb6 {[%clk 0:00:15.3]} 38. cxb6 {[%clk 0:01:45.3]} 38... Qb7 {[%clk
0:00:15.6]} 39. Kg1 {[%clk 0:01:44.6]} 39... Rd7 {[%clk 0:00:15.7]} 40. Rb5
{[%clk 0:01:35.6]} 40... h5 {[%clk 0:00:14.7]} 41. f3 {[%clk 0:01:29.7]} 41...
Kh6 {[%clk 0:00:13.6]} 42. Kf2 {[%clk 0:01:29.2]} 42... Kg7 {[%clk 0:00:13.1]}
43. Rb3 {[%clk 0:01:20]} 43... Kh6 {[%clk 0:00:12.7]} 44. Qb5 {[%clk 0:01:20.5]}
44... d3 {[%clk 0:00:10.3]} 45. Rb1 {[%clk 0:01:10.6]} 45... d2 {[%clk
0:00:09.7]} 46. Rd1 {[%clk 0:01:11.1]} 46... Rd4 {[%clk 0:00:05.1]} 47. Qe8
{[%clk 0:01:04.6]} 47... Kg7 {[%clk 0:00:05.2]} 48. Ke3 {[%clk 0:00:45.3]} 48...
Rb4 {[%clk 0:00:04.7]} 49. Rxd2 {[%clk 0:00:42.4]} 49... Rb3+ {[%clk 0:00:05]}
50. Rd3 {[%clk 0:00:37.7]} 50... Rxd3+ {[%clk 0:00:05.3]} 51. Kxd3 {[%clk
0:00:37.7]} 51... Qxf3+ {[%clk 0:00:05.9]} 52. Kc4 {[%clk 0:00:37]} 52... Qe4+
{[%clk 0:00:06.1]} 53. Kb5 {[%clk 0:00:36.1]} 53... Qd5+ {[%clk 0:00:06.2]} 54.
Ka6 {[%clk 0:00:36.5]} 54... Qc4+ {[%clk 0:00:06.3]} 55. Qb5 {[%clk 0:00:36.9]}
55... Qc8+ {[%clk 0:00:06]} 56. b7 {[%clk 0:00:37.3]} 56... Qc7 {[%clk
0:00:05.3]} 57. b8=Q {[%clk 0:00:35.1]} 57... Qxb8 {[%clk 0:00:04.7]} 58. Qxb8
{[%clk 0:00:36]} 1-0

[Event "*** Titled Tuesday Blitz"]
[Site "Chess.com"]
[Date "2021.02.09"]
[Round "3"]
[White "swisspower96"]
[Black "SARGISMV"]
[Result "1-0"]
[WhiteElo "2668"]
[BlackElo "2423"]
[TimeControl "180+1"]
[EndTime "10:29:28 PST"]
[Termination "swisspower96 won by checkmate"]

1. d4 {[%clk 0:03:00.9]} 1... e6 {[%clk 0:02:54.7]} 2. c4 {[%clk 0:02:59.2]}
2... c5 {[%clk 0:02:54.7]} 3. d5 {[%clk 0:02:58.6]} 3... exd5 {[%clk 0:02:55.6]}
4. cxd5 {[%clk 0:02:59.5]} 4... d6 {[%clk 0:02:56.1]} 5. Nc3 {[%clk 0:02:59.8]}
5... a6 {[%clk 0:02:56.8]} 6. a4 {[%clk 0:02:57.6]} 6... Ne7 {[%clk 0:02:57.2]}
7. e4 {[%clk 0:02:40]} 7... Ng6 {[%clk 0:02:56.1]} 8. Nge2 {[%clk 0:02:40.1]}
8... Be7 {[%clk 0:02:56.1]} 9. g3 {[%clk 0:02:23.6]} 9... O-O {[%clk 0:02:55.2]}
10. Bg2 {[%clk 0:02:23.7]} 10... Bf6 {[%clk 0:02:55.4]} 11. O-O {[%clk
0:02:23.4]} 11... Re8 {[%clk 0:02:55.6]} 12. h3 {[%clk 0:02:12.8]} 12... Nd7
{[%clk 0:02:55.2]} 13. f4 {[%clk 0:01:55.6]} 13... Rb8 {[%clk 0:02:55.2]} 14. e5
{[%clk 0:01:24.4]} 14... dxe5 {[%clk 0:02:54.4]} 15. f5 {[%clk 0:01:25]} 15...
Ngf8 {[%clk 0:02:46.5]} 16. Ne4 {[%clk 0:01:24.9]} 16... c4 {[%clk 0:02:10]} 17.
N2c3 {[%clk 0:01:19]} 17... b5 {[%clk 0:02:03.2]} 18. d6 {[%clk 0:01:18.5]}
18... Bb7 {[%clk 0:01:54.1]} 19. Be3 {[%clk 0:01:11.4]} 19... h6 {[%clk
0:01:12.9]} 20. Qd2 {[%clk 0:01:07.9]} 20... Nh7 {[%clk 0:01:09.9]} 21. axb5
{[%clk 0:00:57.7]} 21... axb5 {[%clk 0:01:09.4]} 22. Ba7 {[%clk 0:00:57.6]}
22... b4 {[%clk 0:01:04]} 23. Nd5 {[%clk 0:00:54.2]} 23... Bxd5 {[%clk
0:01:03.8]} 24. Qxd5 {[%clk 0:00:53.6]} 24... Rc8 {[%clk 0:00:57.6]} 25. h4
{[%clk 0:00:43.8]} 25... c3 {[%clk 0:00:48.7]} 26. bxc3 {[%clk 0:00:42.7]} 26...
bxc3 {[%clk 0:00:49.6]} 27. Rfc1 {[%clk 0:00:42.4]} 27... c2 {[%clk 0:00:49.2]}
28. Qd3 {[%clk 0:00:40.4]} 28... Bxh4 {[%clk 0:00:24]} 29. gxh4 {[%clk
0:00:36.7]} 29... Qxh4 {[%clk 0:00:24.9]} 30. Rxc2 {[%clk 0:00:32.8]} 30... Rxc2
{[%clk 0:00:23.9]} 31. Qxc2 {[%clk 0:00:33.7]} 31... Ng5 {[%clk 0:00:19.9]} 32.
Qf2 {[%clk 0:00:30.1]} 32... Qg4 {[%clk 0:00:17.6]} 33. Nxg5 {[%clk 0:00:30.5]}
33... Qxg5 {[%clk 0:00:17.6]} 34. Be3 {[%clk 0:00:30.2]} 34... Qf6 {[%clk
0:00:17.1]} 35. Rd1 {[%clk 0:00:28.1]} 35... e4 {[%clk 0:00:16.4]} 36. Bd4
{[%clk 0:00:24.8]} 36... Qxd6 {[%clk 0:00:15]} 37. Re1 {[%clk 0:00:20.6]} 37...
Qd5 {[%clk 0:00:13.8]} 38. Ba1 {[%clk 0:00:15]} 38... Nc5 {[%clk 0:00:12.1]} 39.
Qg3 {[%clk 0:00:11.7]} 39... f6 {[%clk 0:00:07.2]} 40. Bxf6 {[%clk 0:00:10.6]}
40... Qf7 {[%clk 0:00:07.9]} 41. Bd4 {[%clk 0:00:09.5]} 41... Nd3 {[%clk
0:00:07.3]} 42. Rxe4 {[%clk 0:00:08.7]} 42... Rxe4 {[%clk 0:00:06.9]} 43. Bxe4
{[%clk 0:00:09.6]} 43... Nb4 {[%clk 0:00:05.8]} 44. Qb8+ {[%clk 0:00:08.1]}
44... Kh7 {[%clk 0:00:06]} 45. Qxb4 {[%clk 0:00:08.4]} 45... Qh5 {[%clk
0:00:06.2]} 46. f6+ {[%clk 0:00:08.6]} 46... g6 {[%clk 0:00:05.7]} 47. Qe7+
{[%clk 0:00:08.7]} 47... Kh8 {[%clk 0:00:06.2]} 48. f7+ {[%clk 0:00:08.6]} 48...
Kh7 {[%clk 0:00:06.4]} 49. f8=Q# {[%clk 0:00:09.1]} 1-0

[Event "*** Titled Tuesday Blitz"]
[Site "Chess.com"]
[Date "2021.02.09"]
[Round "3"]
[White "Heineccius"]
[Black "Kaua18"]
[Result "0-1"]
[WhiteElo "2560"]
[BlackElo "2410"]
[TimeControl "180+1"]
[EndTime "10:29:29 PST"]
[Termination "Kaua18 won on time"]

1. d4 {[%clk 0:03:00.9]} 1... Nf6 {[%clk 0:02:59.5]} 2. c4 {[%clk 0:03:01.1]}
2... e6 {[%clk 0:02:55.4]} 3. Nc3 {[%clk 0:03:01.1]} 3... Bb4 {[%clk 0:02:55.1]}
4. g3 {[%clk 0:03:01.4]} 4... d5 {[%clk 0:02:53]} 5. Bg2 {[%clk 0:03:01.2]} 5...
O-O {[%clk 0:02:53.3]} 6. Nf3 {[%clk 0:03:00.9]} 6... b6 {[%clk 0:02:49.9]} 7.
O-O {[%clk 0:02:59.8]} 7... Bb7 {[%clk 0:02:50.3]} 8. Ne5 {[%clk 0:02:47.2]}
8... Nbd7 {[%clk 0:02:49.2]} 9. Bg5 {[%clk 0:02:37.5]} 9... Be7 {[%clk
0:02:45.1]} 10. cxd5 {[%clk 0:02:18.6]} 10... exd5 {[%clk 0:02:31.7]} 11. Rc1
{[%clk 0:02:06.2]} 11... h6 {[%clk 0:01:48.5]} 12. Bf4 {[%clk 0:02:01.4]} 12...
a6 {[%clk 0:01:35.1]} 13. Nxd7 {[%clk 0:01:29.4]} 13... Qxd7 {[%clk 0:01:33.5]}
14. Bxc7 {[%clk 0:01:19.8]} 14... Qxc7 {[%clk 0:01:34.4]} 15. Nxd5 {[%clk
0:01:19.8]} 15... Qd7 {[%clk 0:00:09.2]} 16. Nxb6 {[%clk 0:01:17.1]} 16... Qb5
{[%clk 0:00:09.4]} 17. Nxa8 {[%clk 0:01:13.5]} 17... Bxa8 {[%clk 0:00:10.3]} 18.
Bxa8 {[%clk 0:01:04.4]} 18... Rxa8 {[%clk 0:00:11.2]} 19. Qc2 {[%clk 0:00:41.1]}
19... Rb8 {[%clk 0:00:10.8]} 20. b3 {[%clk 0:00:38.3]} 20... Ba3 {[%clk
0:00:10.9]} 21. Rcd1 {[%clk 0:00:38]} 21... Qb7 {[%clk 0:00:09.4]} 22. d5 {[%clk
0:00:22.8]} 22... Rc8 {[%clk 0:00:09.7]} 23. Qd3 {[%clk 0:00:21.2]} 23... a5
{[%clk 0:00:09.1]} 24. e4 {[%clk 0:00:19]} 24... Nd7 {[%clk 0:00:08.1]} 25. f4
{[%clk 0:00:16.1]} 25... Qb6+ {[%clk 0:00:07.8]} 26. Kh1 {[%clk 0:00:16.7]}
26... Nc5 {[%clk 0:00:04.5]} 27. Qc4 {[%clk 0:00:16.5]} 27... Qb8 {[%clk
0:00:03.1]} 28. d6 {[%clk 0:00:15.8]} 28... Nd7 {[%clk 0:00:02.5]} 29. Qd3
{[%clk 0:00:14.7]} 29... Rc6 {[%clk 0:00:02.3]} 30. e5 {[%clk 0:00:14.2]} 30...
Rc5 {[%clk 0:00:02.2]} 31. Qf3 {[%clk 0:00:14.1]} 31... Rc2 {[%clk 0:00:02.2]}
32. Rf2 {[%clk 0:00:13.2]} 32... Qc8 {[%clk 0:00:02.7]} 33. Rxc2 {[%clk
0:00:12.2]} 33... Qxc2 {[%clk 0:00:03.6]} 34. Re1 {[%clk 0:00:10.3]} 34... Bb4
{[%clk 0:00:03.6]} 35. Qe4 {[%clk 0:00:09.9]} 35... Qxa2 {[%clk 0:00:02.3]} 36.
Qa8+ {[%clk 0:00:07.4]} 36... Kh7 {[%clk 0:00:02.3]} 37. Qe4+ {[%clk 0:00:08]}
37... g6 {[%clk 0:00:02.8]} 38. e6 {[%clk 0:00:08.1]} 38... Qxb3 {[%clk
0:00:02.3]} 39. exd7 {[%clk 0:00:07.1]} 39... Bxe1 {[%clk 0:00:02.4]} 40. d8=Q
{[%clk 0:00:06.4]} 40... Qd1 {[%clk 0:00:01.4]} 41. Qe5 {[%clk 0:00:02.3]} 41...
Bc3+ {[%clk 0:00:02.3]} 42. Kg2 {[%clk 0:00:01.3]} 42... Bxe5 {[%clk 0:00:02.7]}
0-1

[Event "*** Titled Tuesday Blitz"]
[Site "Chess.com"]
[Date "2021.02.09"]
[Round "3"]
[White "Problematique_99"]
[Black "Sjakkerntobi"]
[Result "0-1"]
[WhiteElo "2452"]
[BlackElo "2295"]
[TimeControl "180+1"]
[EndTime "10:29:31 PST"]
[Termination "Sjakkerntobi won by resignation"]

1. e4 {[%clk 0:03:00.9]} 1... e6 {[%clk 0:02:59.5]} 2. d3 {[%clk 0:02:59.2]}
2... d5 {[%clk 0:03:00.2]} 3. Qe2 {[%clk 0:02:59.6]} 3... Nf6 {[%clk 0:02:59.5]}
4. Nf3 {[%clk 0:02:59.8]} 4... Be7 {[%clk 0:02:59.5]} 5. g3 {[%clk 0:02:59.8]}
5... O-O {[%clk 0:03:00.1]} 6. Bg2 {[%clk 0:03:00.2]} 6... c5 {[%clk 0:03:00.8]}
7. O-O {[%clk 0:03:00.3]} 7... Nc6 {[%clk 0:03:01.4]} 8. e5 {[%clk 0:03:00.9]}
8... Nd7 {[%clk 0:03:02]} 9. c4 {[%clk 0:03:01.5]} 9... b5 {[%clk 0:03:01.4]}
10. cxb5 {[%clk 0:02:59.2]} 10... Na5 {[%clk 0:03:01]} 11. Nc3 {[%clk
0:02:58.8]} 11... Nb6 {[%clk 0:02:47.5]} 12. h4 {[%clk 0:02:48.5]} 12... a6
{[%clk 0:02:43.1]} 13. bxa6 {[%clk 0:02:41.2]} 13... Bxa6 {[%clk 0:02:44]} 14.
Bg5 {[%clk 0:02:40.6]} 14... h6 {[%clk 0:02:38.9]} 15. Bxe7 {[%clk 0:02:40.1]}
15... Qxe7 {[%clk 0:02:39.8]} 16. Rfd1 {[%clk 0:02:39.8]} 16... Nc6 {[%clk
0:02:32.8]} 17. Qd2 {[%clk 0:02:32.9]} 17... Rfb8 {[%clk 0:02:27.5]} 18. Rac1
{[%clk 0:02:28.6]} 18... Nb4 {[%clk 0:02:04.5]} 19. Bf1 {[%clk 0:02:28.5]} 19...
Bb7 {[%clk 0:01:51.9]} 20. a3 {[%clk 0:02:25.2]} 20... Nc6 {[%clk 0:01:50.4]}
21. Qf4 {[%clk 0:02:16.7]} 21... Na5 {[%clk 0:01:43.7]} 22. Nb5 {[%clk
0:02:05.7]} 22... Bc6 {[%clk 0:01:33.6]} 23. Nd6 {[%clk 0:02:05.6]} 23... Nb3
{[%clk 0:01:33.4]} 24. Rc3 {[%clk 0:02:04]} 24... Na4 {[%clk 0:01:32.5]} 25. Rc2
{[%clk 0:01:55.5]} 25... Na5 {[%clk 0:01:06.2]} 26. Rdd2 {[%clk 0:01:26.6]}
26... Nb3 {[%clk 0:01:01.4]} 27. Re2 {[%clk 0:01:26.7]} 27... Na1 {[%clk
0:00:52.9]} 28. Rcd2 {[%clk 0:01:24.9]} 28... Nb3 {[%clk 0:00:50]} 29. Rd1
{[%clk 0:01:25.2]} 29... Na5 {[%clk 0:00:47.7]} 30. b4 {[%clk 0:01:25.4]} 30...
cxb4 {[%clk 0:00:38.4]} 31. axb4 {[%clk 0:01:26.3]} 31... Nb7 {[%clk 0:00:39.3]}
32. Rc2 {[%clk 0:01:20.7]} 32... Be8 {[%clk 0:00:36.7]} 33. Nd4 {[%clk
0:01:13.7]} 33... Nxd6 {[%clk 0:00:27.6]} 34. exd6 {[%clk 0:01:13.8]} 34... e5
{[%clk 0:00:28.5]} 35. dxe7 {[%clk 0:01:10.2]} 35... exf4 {[%clk 0:00:28.6]} 36.
Rb1 {[%clk 0:01:01.6]} 36... fxg3 {[%clk 0:00:27.3]} 37. fxg3 {[%clk 0:01:02.1]}
37... Ra7 {[%clk 0:00:22.7]} 38. Nf5 {[%clk 0:00:47.4]} 38... g6 {[%clk
0:00:22.8]} 39. Nxh6+ {[%clk 0:00:45.8]} 39... Kg7 {[%clk 0:00:23.4]} 40. Ng4
{[%clk 0:00:46.1]} 40... Rxe7 {[%clk 0:00:24.1]} 41. Bg2 {[%clk 0:00:46.4]}
41... d4 {[%clk 0:00:22]} 42. Nf2 {[%clk 0:00:39.2]} 42... Nc3 {[%clk 0:00:22]}
43. Rf1 {[%clk 0:00:35.9]} 43... Rxb4 {[%clk 0:00:20.5]} 44. Ne4 {[%clk
0:00:36]} 44... Nxe4 {[%clk 0:00:19.1]} 45. Bxe4 {[%clk 0:00:36.9]} 45... Bb5
{[%clk 0:00:17.1]} 46. Rc5 {[%clk 0:00:35.5]} 46... Rxe4 {[%clk 0:00:11.3]} 47.
dxe4 {[%clk 0:00:28.5]} 47... Bxf1 {[%clk 0:00:12.2]} 48. Kxf1 {[%clk
0:00:29.3]} 48... Kf6 {[%clk 0:00:11.3]} 49. Rd5 {[%clk 0:00:28.1]} 49... Ke6
{[%clk 0:00:11.8]} 50. Kf2 {[%clk 0:00:28.3]} 50... f5 {[%clk 0:00:11.9]} 51.
Kf3 {[%clk 0:00:24.2]} 51... fxe4+ {[%clk 0:00:09.9]} 52. Kxe4 {[%clk
0:00:24.4]} 52... d3+ {[%clk 0:00:10.2]} 0-1

[Event "*** Titled Tuesday Blitz"]
[Site "Chess.com"]
[Date "2021.02.09"]
[Round "3"]
[White "FloMaster111"]
[Black "tylityli"]
[Result "1-0"]
[WhiteElo "2509"]
[BlackElo "2277"]
[TimeControl "180+1"]
[EndTime "10:29:32 PST"]
[Termination "FloMaster111 won on time"]

1. e4 {[%clk 0:03:00.9]} 1... e5 {[%clk 0:02:58.2]} 2. Nf3 {[%clk 0:03:00.5]}
2... Nc6 {[%clk 0:02:57.5]} 3. Bb5 {[%clk 0:03:00.8]} 3... a6 {[%clk 0:02:57.2]}
4. Ba4 {[%clk 0:03:01]} 4... Nf6 {[%clk 0:02:56.3]} 5. O-O {[%clk 0:03:00.3]}
5... Be7 {[%clk 0:02:56.3]} 6. Re1 {[%clk 0:02:53.9]} 6... b5 {[%clk 0:02:55.1]}
7. Bb3 {[%clk 0:02:54.1]} 7... d6 {[%clk 0:02:54.1]} 8. c3 {[%clk 0:02:54.1]}
8... O-O {[%clk 0:02:53.4]} 9. h3 {[%clk 0:02:54.3]} 9... Nd7 {[%clk 0:02:53]}
10. d4 {[%clk 0:02:52.8]} 10... Bf6 {[%clk 0:02:53.2]} 11. a4 {[%clk 0:02:43.9]}
11... Bb7 {[%clk 0:02:50.2]} 12. a5 {[%clk 0:02:44]} 12... Rc8 {[%clk
0:02:36.4]} 13. Bd5 {[%clk 0:02:19.9]} 13... Rb8 {[%clk 0:02:27.2]} 14. Be3
{[%clk 0:02:09.7]} 14... Ne7 {[%clk 0:02:17.7]} 15. Bxb7 {[%clk 0:02:09.1]}
15... Rxb7 {[%clk 0:02:18.6]} 16. d5 {[%clk 0:02:07.5]} 16... g6 {[%clk
0:02:09.3]} 17. Nbd2 {[%clk 0:02:01.7]} 17... Bg7 {[%clk 0:02:06.8]} 18. Nf1
{[%clk 0:01:26.6]} 18... h6 {[%clk 0:02:04.7]} 19. Qd2 {[%clk 0:01:24.4]} 19...
Kh7 {[%clk 0:02:03.6]} 20. N3h2 {[%clk 0:01:14.6]} 20... f5 {[%clk 0:02:02.1]}
21. f3 {[%clk 0:01:14.8]} 21... Nf6 {[%clk 0:01:54.8]} 22. Qd3 {[%clk
0:01:09.1]} 22... Nh5 {[%clk 0:01:47.7]} 23. Nd2 {[%clk 0:00:56.8]} 23... Qd7
{[%clk 0:01:43.1]} 24. Nhf1 {[%clk 0:00:55.6]} 24... Rfb8 {[%clk 0:01:39.7]} 25.
Re2 {[%clk 0:00:49.9]} 25... Nf4 {[%clk 0:01:34.6]} 26. Bxf4 {[%clk 0:00:49.9]}
26... exf4 {[%clk 0:01:35.5]} 27. Rae1 {[%clk 0:00:44.3]} 27... Be5 {[%clk
0:01:22.2]} 28. Nb3 {[%clk 0:00:33.2]} 28... c5 {[%clk 0:01:15]} 29. dxc6 {[%clk
0:00:33.1]} 29... Qxc6 {[%clk 0:01:05.8]} 30. Nd4 {[%clk 0:00:28.6]} 30... Qc4
{[%clk 0:01:01.2]} 31. Qd2 {[%clk 0:00:20.5]} 31... b4 {[%clk 0:00:55.8]} 32.
exf5 {[%clk 0:00:20]} 32... Nxf5 {[%clk 0:00:39.4]} 33. Nxf5 {[%clk 0:00:19.7]}
33... gxf5 {[%clk 0:00:40.3]} 34. Qc2 {[%clk 0:00:15.1]} 34... Kg6 {[%clk
0:00:37.1]} 35. Nd2 {[%clk 0:00:11.6]} 35... Qc5+ {[%clk 0:00:32.1]} 36. Kh1
{[%clk 0:00:10.5]} 36... bxc3 {[%clk 0:00:32.1]} 37. bxc3 {[%clk 0:00:11.1]}
37... Rb2 {[%clk 0:00:23.5]} 38. Qd3 {[%clk 0:00:10.5]} 38... Qb5 {[%clk
0:00:14.8]} 39. c4 {[%clk 0:00:09.2]} 39... Qxa5 {[%clk 0:00:13.1]} 40. Rxe5
{[%clk 0:00:04]} 40... dxe5 {[%clk 0:00:11.6]} 41. Qd6+ {[%clk 0:00:04.6]} 41...
Kf7 {[%clk 0:00:09.5]} 42. Rxe5 {[%clk 0:00:04.5]} 42... Qxd2 {[%clk 0:00:06.1]}
43. Re7+ {[%clk 0:00:04.3]} 43... Kg8 {[%clk 0:00:05]} 44. Qg6+ {[%clk
0:00:04.4]} 1-0

[Event "*** Titled Tuesday Blitz"]
[Site "Chess.com"]
[Date "2021.02.09"]
[Round "3"]
[White "ukchessbomber"]
[Black "Susal_De_Silva"]
[Result "1-0"]
[WhiteElo "2420"]
[BlackElo "2609"]
[TimeControl "180+1"]
[EndTime "10:29:35 PST"]
[Termination "ukchessbomber won by resignation"]

1. d4 {[%clk 0:03:00.9]} 1... Nf6 {[%clk 0:03:00.2]} 2. c4 {[%clk 0:03:01.3]}
2... e6 {[%clk 0:03:00.6]} 3. Nc3 {[%clk 0:03:01.8]} 3... Bb4 {[%clk 0:03:00.8]}
4. a3 {[%clk 0:03:02.3]} 4... Bxc3+ {[%clk 0:03:00.7]} 5. bxc3 {[%clk
0:03:03.2]} 5... b6 {[%clk 0:03:01.3]} 6. f3 {[%clk 0:03:03]} 6... Bb7 {[%clk
0:02:59.7]} 7. e4 {[%clk 0:03:03.3]} 7... c5 {[%clk 0:02:59.3]} 8. Bd3 {[%clk
0:03:03.6]} 8... d6 {[%clk 0:02:59.2]} 9. Ne2 {[%clk 0:03:04.1]} 9... Nc6 {[%clk
0:02:59.2]} 10. O-O {[%clk 0:03:04.1]} 10... Qc7 {[%clk 0:02:58.2]} 11. Bg5
{[%clk 0:03:03.1]} 11... O-O-O {[%clk 0:02:58.3]} 12. f4 {[%clk 0:03:01]} 12...
Rde8 {[%clk 0:02:51.4]} 13. e5 {[%clk 0:02:40.5]} 13... Nd7 {[%clk 0:02:43.6]}
14. Be4 {[%clk 0:02:30.6]} 14... f6 {[%clk 0:02:38.6]} 15. Bh4 {[%clk
0:02:19.8]} 15... fxe5 {[%clk 0:02:22.9]} 16. fxe5 {[%clk 0:02:19.5]} 16... dxe5
{[%clk 0:02:22.7]} 17. d5 {[%clk 0:02:14.2]} 17... Na5 {[%clk 0:02:22.6]} 18.
Rf7 {[%clk 0:01:46.4]} 18... Nxc4 {[%clk 0:01:55.3]} 19. Qa4 {[%clk 0:01:17.5]}
19... Nd6 {[%clk 0:01:45.4]} 20. dxe6 {[%clk 0:01:03.6]} 20... Rxe6 {[%clk
0:01:16.7]} 21. Bxb7+ {[%clk 0:00:53.7]} 21... Qxb7 {[%clk 0:01:16.1]} 22. Rxg7
{[%clk 0:00:54.1]} 22... Rf8 {[%clk 0:01:10]} 23. Qg4 {[%clk 0:00:51.8]} 23...
Rfe8 {[%clk 0:00:55.6]} 24. Rd1 {[%clk 0:00:50.3]} 24... Qc6 {[%clk 0:00:53.6]}
25. Ng3 {[%clk 0:00:47.7]} 25... e4 {[%clk 0:00:47.3]} 26. Nf5 {[%clk
0:00:42.7]} 26... Nxf5 {[%clk 0:00:46.6]} 27. Qxf5 {[%clk 0:00:41.3]} 27... Rd6
{[%clk 0:00:40.9]} 28. Re1 {[%clk 0:00:32.8]} 28... e3 {[%clk 0:00:38.8]} 29.
Bg3 {[%clk 0:00:31.4]} 29... Rf6 {[%clk 0:00:31.1]} 30. Qd3 {[%clk 0:00:30.9]}
30... Rfe6 {[%clk 0:00:28.2]} 31. Qa6+ {[%clk 0:00:29.4]} 31... Kd8 {[%clk
0:00:19.4]} 32. Bh4+ {[%clk 0:00:29.2]} 32... Rf6 {[%clk 0:00:17.6]} 33. Qxa7
{[%clk 0:00:25.7]} 33... Kc8 {[%clk 0:00:09.5]} 34. Qxd7+ {[%clk 0:00:16.1]}
34... Qxd7 {[%clk 0:00:09.2]} 35. Rxd7 {[%clk 0:00:17]} 35... Kxd7 {[%clk
0:00:07]} 36. Bxf6 {[%clk 0:00:16.7]} 36... Kc6 {[%clk 0:00:05.6]} 37. Bg5
{[%clk 0:00:16.5]} 37... Kd5 {[%clk 0:00:05.1]} 38. Rxe3 {[%clk 0:00:15.6]}
38... Ra8 {[%clk 0:00:05.9]} 39. Re7 {[%clk 0:00:12.3]} 39... Rxa3 {[%clk
0:00:05.3]} 40. Bf6 {[%clk 0:00:12.9]} 40... h5 {[%clk 0:00:03.6]} 41. Re5+
{[%clk 0:00:11.9]} 41... Kc4 {[%clk 0:00:04.5]} 42. Rxh5 {[%clk 0:00:12.8]}
42... Ra1+ {[%clk 0:00:05]} 43. Kf2 {[%clk 0:00:12.8]} 43... Ra2+ {[%clk
0:00:05.9]} 44. Kf3 {[%clk 0:00:13.4]} 44... Ra7 {[%clk 0:00:06.3]} 45. g4
{[%clk 0:00:13.4]} 45... Rf7 {[%clk 0:00:06.8]} 46. g5 {[%clk 0:00:13.6]} 46...
b5 {[%clk 0:00:07.7]} 47. Ke4 {[%clk 0:00:13.7]} 47... b4 {[%clk 0:00:08.1]} 48.
cxb4 {[%clk 0:00:14.6]} 48... cxb4 {[%clk 0:00:09]} 49. Rh3 {[%clk 0:00:14.9]}
49... Rf8 {[%clk 0:00:09.9]} 50. Be5 {[%clk 0:00:13.5]} 50... Re8 {[%clk
0:00:10.8]} 51. g6 {[%clk 0:00:13.3]} 51... b3 {[%clk 0:00:11.4]} 52. Rc3+
{[%clk 0:00:13.3]} 52... Kb4 {[%clk 0:00:11.6]} 53. Rc7 {[%clk 0:00:13.3]} 53...
b2 {[%clk 0:00:11.5]} 54. Rb7+ {[%clk 0:00:12.3]} 54... Ka3 {[%clk 0:00:12.4]}
55. Rxb2 {[%clk 0:00:12.8]} 1-0